bitfinex-derivatives/quotes_SOLF0:USTF0_20251117
["timestamp","ask_amount","ask_price","bid_price","bid_amount"]
[1763348828577,3.31,139.64,139.61,3.08]
[1763348828775,3.31,139.64,139.62,8.18132107]
[1763348828987,3.31,139.64,139.63,8.18132107]
[1763348834778,3.31,139.64,139.6,0.05073546]
[1763348834977,3.31,139.62,139.6,0.05073546]
[1763348837384,3.14,139.6,139.55,3.08]
[1763348837584,3.14,139.58,139.55,3.08]
[1763348838383,3.18860524,139.58,139.55,3.1332952]
[1763348838883,0.04860524,139.58,139.55,3.1332952]
[1763348845394,3.30860524,139.58,139.55,3.1332952]
[1763348845693,0.04860524,139.58,139.55,3.1332952]
[1763348846792,0.04860524,139.58,139.56,12.24578367]
[1763348846990,0.04860524,139.58,139.57,8.96578367]
[1763348848491,0.04860524,139.58,139.57,12.24578367]
[1763348852796,5.0817237,139.58,139.57,7.44419188]
[1763348853101,3.26,139.57,139.55,0.0532952]
[1763348853288,5.03311846,139.56,139.55,0.0532952]
[1763348853703,6.47311846,139.56,139.55,0.0532952]
[1763348854695,3.26,139.55,139.5,6.07]
[1763348854889,3.21311846,139.56,139.5,6.07]
[1763348854890,3.26,139.53,139.5,6.07]
[1763348855292,3.26,139.5,139.43,3.28]
[1763348855485,3.26,139.48,139.43,3.28]
[1763348855697,3.31508534,139.48,139.45,0.05407288]
[1763348856098,5.03311846,139.47,139.45,0.05407288]
[1763348857695,0.05508534,139.48,139.45,3.33407288]
[1763348858994,0.05508534,139.48,139.46,3.28]
[1763348859203,75.06,139.5,139.48,3.28]
[1763348860098,75.10555076,139.5,139.48,3.28]
[1763348860300,0.04555076,139.5,139.48,3.28]
[1763348865102,0.04555076,139.5,139.49,8.97046261]
[1763348867190,0.04555076,139.5,139.49,12.25046261]
[1763348870207,0.04555076,139.5,139.49,8.97046261]
[1763348870906,0.04555076,139.5,139.49,12.25046261]
[1763348879315,0.04555076,139.5,139.49,12.24992985]
[1763348883521,0.04555076,139.5,139.49,12.24992947]
[1763348885416,1.77311846,139.56,139.49,14.02304793]
[1763348885621,11.83185104,139.61,139.54,3.32]
[1763348885927,11.83185104,139.61,139.53,1.77311846]
[1763348885928,78.48,139.6,139.56,3.32]
[1763348886118,75.08,139.6,139.58,3.32]
[1763348886422,78.48,139.6,139.59,8.96992947]
[1763348889819,75.08,139.6,139.59,12.28992947]
[1763348890024,4.64713303,139.63,139.59,12.28992947]
[1763348890025,1.77311846,139.63,139.6,3.32]
[1763348890224,1.77311846,139.63,139.61,12.28992947]
[1763348890225,75.06,139.63,139.61,12.28992947]
[1763348890420,75.06,139.63,139.62,8.96992947]
[1763348890622,78.46,139.63,139.62,8.96992947]
[1763348893230,78.46,139.63,139.61,0.0480159]
[1763348893835,75.06,139.63,139.62,12.28462729]
[1763348894223,3.4,139.64,139.62,8.96462729]
[1763348894428,12.28297524,139.65,139.61,3.3680159]
[1763348894429,78.44,139.63,139.61,3.3680159]
[1763348894730,78.44,139.63,139.62,8.96422161]
[1763348895532,75.04,139.63,139.62,8.96422161]
[1763348895732,10.50985678,139.65,139.63,3.32]
[1763348895920,10.50985678,139.65,139.64,12.28422161]
[1763348896229,6.65873258,139.7,139.65,3.32]
[1763348896230,78.44,139.7,139.65,3.32]
[1763348896431,3.36,139.69,139.66,12.38895045]
[1763348896624,5.13311846,139.69,139.66,0.05472884]
[1763348896829,3.36,139.68,139.66,0.05472884]
[1763348898436,5.13311846,139.68,139.66,0.05472884]
[1763348898830,3.36,139.67,139.66,0.05472884]
[1763348899036,3.36,139.67,139.61,3.37]
[1763348899229,3.36,139.65,139.62,12.33320859]
[1763348899432,78.4,139.66,139.63,12.33320859]
[1763348899634,78.4,139.66,139.63,3.37]
[1763348899832,78.4,139.66,139.6,3.37]
[1763348899833,3.36,139.65,139.6,3.37]
[1763348900034,0.0518204,139.64,139.62,3.37]
[1763348900236,0.0518204,139.64,139.63,12.33280305]
[1763348902228,4.93493886,139.64,139.61,0.04610394]
[1763348902426,3.11,139.63,139.61,0.04610394]
[1763348902626,78.15,139.62,139.61,0.04610394]
[1763348902832,79.92311846,139.62,139.61,0.04610394]
[1763348903241,3.11,139.61,139.53,3.09]
[1763348903533,3.11,139.59,139.53,3.09]
[1763348903735,28.19873258,139.65,139.44,8.91224617]
[1763348903736,3.11,139.57,139.51,3.09]
[1763348904135,0.04741821,139.55,139.53,3.13781605]
[1763348905437,3.15741821,139.55,139.53,0.04781605]
[1763348906234,75.06,139.54,139.53,0.04781605]
[1763348907041,78.17,139.54,139.53,0.04781605]
[1763348909737,79.94311846,139.54,139.53,0.04781605]
[1763348910936,78.17,139.54,139.53,0.04781605]
[1763348914343,0.04741821,139.55,139.53,0.04781605]
[1763348914344,0.04741821,139.55,139.53,9.01694632]
[1763348914552,78.21741821,139.55,139.54,8.96913027]
[1763348915439,3.11,139.54,139.53,0.04781605]
[1763348915634,5.8830031,139.54,139.53,0.04781605]
[1763348922043,3.11,139.54,139.53,0.04781605]
[1763348922750,78.17,139.54,139.53,0.04781605]
[1763348928257,3.11,139.54,139.53,0.04781605]
[1763348928556,3.11,139.54,139.53,12.10697975]
[1763348928557,75.06,139.54,139.53,12.10697975]
[1763348928857,78.17,139.54,139.53,9.01697975]
[1763348930347,78.17,139.54,139.53,0.04781605]
[1763348930757,0.04741821,139.55,139.53,3.13781605]
[1763348930950,78.17,139.54,139.53,0.04781605]
[1763348931155,78.17,139.54,139.53,9.01686929]
[1763348931450,78.17,139.54,139.53,0.04781605]
[1763348931657,78.17,139.54,139.53,9.01681781]
[1763348932354,75.06,139.54,139.53,9.01681781]
[1763348932557,75.06,139.54,139.53,12.40681781]
[1763348932755,75.06,139.54,139.53,9.01681781]
[1763348933454,78.32,139.54,139.53,9.01681781]
[1763348933648,75.06,139.54,139.53,9.01681781]
[1763348934758,75.06,139.54,139.53,12.40681781]
[1763348936255,75.08741821,139.55,139.54,3.39]
[1763348936457,75.08741821,139.55,139.54,12.35900176]
[1763348937259,75.08741821,139.55,139.54,8.96900176]
[1763348938159,78.34741821,139.55,139.54,8.96900176]
[1763348940557,75.08741821,139.55,139.46,3.39]
[1763348940758,2.7730031,139.52,139.46,3.39]
[1763348941057,75.04,139.51,139.46,3.39]
[1763348941660,0.04920049,139.5,139.47,0.05015109]
[1763348941960,0.04920049,139.5,139.47,3.44015109]
[1763348943659,0.04920049,139.5,139.47,0.05015109]
[1763348944855,9.99920359,139.5,139.47,0.05015109]
[1763348945049,2.82220359,139.5,139.47,0.05015109]
[1763348947263,9.49804141,139.5,139.47,0.05015109]
[1763348948766,2.82220359,139.5,139.47,0.05015109]
[1763348948968,24.75574552,139.5,139.47,0.05015109]
[1763348949162,2.82220359,139.5,139.47,0.05015109]
[1763348949962,2.7730031,139.48,139.47,0.05015109]
[1763348950169,77.8530031,139.48,139.47,0.05015109]
[1763348950368,75.08,139.48,139.47,3.44015109]
[1763348951168,75.08,139.48,139.47,0.05015109]
[1763348952467,77.8530031,139.48,139.47,0.05015109]
[1763348953770,28.1228155,139.5,139.47,0.05015109]
[1763348954074,2.7730031,139.48,139.47,0.05015109]
[1763348954571,77.8530031,139.48,139.47,0.05015109]
[1763348956860,2.7730031,139.48,139.47,0.05015109]
[1763348957076,77.8530031,139.48,139.47,0.05015109]
[1763348959577,77.8530031,139.48,139.37,15.71293854]
[1763348959578,114.68584092,139.48,139.4,3.25]
[1763348959869,2.7730031,139.46,139.4,3.25]
[1763348960073,75.08,139.45,139.38,3.25]
[1763348960478,0.04834047,139.43,139.4,3.29736835]
[1763348960669,75.08,139.42,139.4,3.29736835]
[1763348962976,0.04834047,139.43,139.4,3.29736835]
[1763348963173,54.52,139.42,139.4,3.29736835]
[1763348964977,75.12834047,139.43,139.4,3.29736835]
[1763348969293,75.08,139.47,139.42,3.22]
[1763348970273,0.05177409,139.46,139.44,3.22]
[1763348972384,0.05177409,139.46,139.43,0.05120625]
[1763348972589,0.05177409,139.46,139.43,3.27120625]
[1763348972781,0.05177409,139.46,139.44,3.22]
[1763348972975,28.08,139.5,139.44,3.22]
[1763348973183,28.08,139.5,139.45,3.22]
[1763348974086,0.04698352,139.49,139.47,3.22]
[1763348974286,0.04607198,139.49,139.47,3.26946901]
[1763348976591,1.82156301,139.49,139.47,0.04946901]
[1763348979974,75.1,139.48,139.47,0.04946901]
[1763348984384,0.04607198,139.49,139.47,3.26946901]
[1763348991394,0.04607198,139.49,139.47,0.04946901]
[1763348992185,8.99639862,139.54,139.47,3.40946901]
[1763348992396,1.77549103,139.6,139.53,3.36]
[1763348992699,3.41,139.61,139.55,3.36]
[1763348992900,42.16,139.62,139.57,3.36]
[1763348993288,0.04976194,139.61,139.59,3.36]
[1763348993491,3.45599655,139.61,139.59,0.05476211]
[1763348995393,5.23148758,139.61,139.59,0.05476211]
[1763348995904,3.41,139.6,139.59,0.05476211]
[1763348997400,5.18549103,139.6,139.59,0.05476211]
[1763349000304,0.04599655,139.61,139.59,3.41476211]
[1763349000603,0.04599655,139.61,139.59,0.05476211]
[1763349000801,3.45599655,139.61,139.59,0.05476211]
[1763349004006,0.04599655,139.61,139.59,3.41476211]
[1763349004207,3.45599655,139.61,139.59,0.05476211]
[1763349004414,5.18549103,139.6,139.59,0.05476211]
[1763349005804,3.41,139.59,139.53,3.36]
[1763349006110,3.41,139.57,139.53,3.36]
[1763349006308,3.41,139.64,139.55,3.36]
[1763349006505,3.41,139.62,139.57,3.36]
[1763349006714,1.77549103,139.61,139.57,3.36]
[1763349007006,0.05466118,139.6,139.58,3.40960709]
[1763349007211,3.41,139.64,139.59,3.36]
[1763349007508,80.34549103,139.65,139.59,3.36]
[1763349008410,0.04734106,139.63,139.59,3.36]
[1763349012107,0.04734106,139.63,139.61,3.36]
[1763349014413,75.14,139.68,139.63,3.36]
[1763349014807,78.55,139.68,139.63,3.36]
[1763349015009,75.14,139.68,139.63,3.36]
[1763349015214,75.14,139.68,139.65,3.36]
[1763349016007,78.55,139.68,139.65,3.36]
[1763349016820,75.14,139.68,139.65,3.36]
[1763349017814,3.23,139.71,139.65,3.36]
[1763349018025,110.81806016,139.78,139.67,3.41]
[1763349018217,3.23,139.77,139.71,3.45666559]
[1763349018534,5.00549103,139.76,139.73,0.04730507]
[1763349018715,5.00549103,139.74,139.73,0.04730507]
[1763349018916,3.23,139.73,139.68,3.41]
[1763349019222,3.23,139.74,139.68,3.41]
[1763349019421,96.42543421,139.78,139.65,3.41]
[1763349019422,5.00549103,139.71,139.65,3.41]
[1763349019619,1.77549103,139.71,139.65,3.41]
[1763349019823,0.04718313,139.69,139.68,3.41]
[1763349020116,96.42543421,139.78,139.68,3.41]
[1763349020117,1.77549103,139.75,139.68,3.41]
[1763349020304,3.23,139.74,139.68,3.41]
[1763349020509,3.23,139.74,139.7,3.41]
[1763349021109,5.00549103,139.75,139.71,3.45864873]
[1763349021425,3.23,139.74,139.71,0.04864873]
[1763349022825,3.36,139.72,139.71,0.04864873]
[1763349023129,3.36,139.72,139.69,6.13]
[1763349023422,3.36,139.69,139.64,3.31]
[1763349023729,1.77549103,139.67,139.64,3.31]
[1763349023916,5.13549103,139.69,139.64,3.31]
[1763349024119,0.05389187,139.68,139.65,0.0551666]
[1763349024321,0.05389187,139.68,139.65,3.3651666]
[1763349024720,3.41389187,139.68,139.65,3.3651666]
[1763349025320,0.05389187,139.68,139.65,3.3651666]
[1763349025711,3.41389187,139.68,139.65,3.3651666]
[1763349026218,0.05389187,139.68,139.65,3.3651666]
[1763349030023,0.05389187,139.68,139.67,3.31]
[1763349030420,75.2,139.72,139.67,3.31]
[1763349030914,78.56,139.72,139.67,3.31]
[1763349031317,75.2,139.72,139.67,3.31]
[1763349031528,75.2,139.72,139.69,3.31]
[1763349031919,1.77549103,139.73,139.69,3.31]
[1763349032921,6.12474778,139.75,139.69,3.31]
[1763349036024,3.36,139.75,139.69,3.31]
[1763349036226,6.12474778,139.75,139.69,3.31]
[1763349036938,7.177,139.78,139.69,3.31]
[1763349037143,10.537,139.78,139.72,3.35708427]
[1763349037635,3.36,139.76,139.72,3.35708427]
[1763349037934,3.36,139.76,139.73,3.36240566]
[1763349038838,3.36,139.76,139.73,0.05240566]
[1763349039234,3.36,139.76,139.73,3.36240566]
[1763349041239,3.36,139.76,139.73,0.05240566]
[1763349043037,3.36,139.74,139.73,0.05240566]
[1763349044555,3.36,139.75,139.73,0.05240566]
[1763349045432,6.12474778,139.74,139.73,0.05240566]
[1763349046337,3.36,139.73,139.67,6.19]
[1763349046745,3.36,139.73,139.67,9.5]
[1763349047437,0.05093926,139.71,139.69,0.05371116]
[1763349047638,3.41093926,139.71,139.69,0.05371116]
[1763349049453,7.177,139.78,139.7,3.31]
[1763349049631,3.36,139.77,139.7,3.31]
[1763349050443,3.36,139.77,139.72,3.36329291]
[1763349057943,3.24,139.8,139.72,3.36329291]
[1763349058152,3.24,139.8,139.75,0.049374]
[1763349058338,3.24,139.8,139.76,3.3]
[1763349058652,45.78985678,139.82,139.76,3.3]
[1763349058849,3.24,139.81,139.76,3.3]
[1763349059250,3.24,139.8,139.75,0.049374]
[1763349059748,3.24,139.8,139.75,3.349374]
[1763349060143,10.417,139.78,139.75,0.049374]
[1763349060342,3.24,139.76,139.75,0.049374]
[1763349060739,7.177,139.78,139.75,3.349374]
[1763349061244,10.417,139.8,139.75,3.349374]
[1763349061756,3.24,139.8,139.75,3.349374]
[1763349061942,3.24,139.8,139.75,0.049374]
[1763349062152,6.00474778,139.8,139.75,0.049374]
[1763349062355,3.24,139.79,139.75,0.049374]
[1763349063344,6.00474778,139.76,139.75,0.049374]
[1763349064053,3.24,139.76,139.75,0.049374]
[1763349068759,3.24,139.78,139.75,0.049374]
[1763349071965,6.00474778,139.78,139.75,0.049374]
[1763349072156,3.24,139.77,139.75,0.049374]
[1763349072669,3.24,139.76,139.75,0.049374]
[1763349077663,3.24,139.76,139.68,9.91375673]
[1763349077864,2.76474778,139.77,139.66,2.76474778]
[1763349077865,3.31,139.74,139.66,6.68375673]
[1763349078064,3.31,139.74,139.66,9.91375673]
[1763349078567,3.31,139.74,139.67,6.3]
[1763349078870,3.36515765,139.72,139.69,0.05285012]
[1763349079069,3.36515765,139.72,139.69,3.28285012]
[1763349079966,3.36515765,139.72,139.69,0.05285012]
[1763349081170,0.05515765,139.72,139.69,3.28285012]
[1763349084375,3.16515765,139.72,139.69,3.28285012]
[1763349084967,3.16515765,139.72,139.69,0.05285012]
[1763349085276,0.05515765,139.72,139.69,3.26285012]
[1763349089172,0.05515765,139.72,139.7,3.21]
[1763349093273,3.11,139.8,139.72,3.21]
[1763349093578,3.11,139.8,139.74,3.21]
[1763349094481,3.11,139.8,139.76,0.05127419]
[1763349094667,3.11,139.8,139.76,3.26127419]
[1763349095570,10.50985678,139.82,139.76,3.26127419]
[1763349095984,13.61985678,139.82,139.78,3.21]
[1763349096163,10.50985678,139.82,139.78,3.21]
[1763349096364,2.03003734,139.87,139.81,1.76773599]
[1763349096573,3.11,139.94,139.86,1.76773599]
[1763349096779,3.11,139.94,139.9,1.76773599]
[1763349097775,3.11,139.94,139.91,8.94560174]
[1763349097977,3.11,139.94,139.92,8.94560174]
[1763349098176,3.11,139.94,139.93,8.94560174]
[1763349098376,3.11,139.94,139.93,8.94529656]
[1763349098777,3.11,139.92,139.81,2.83]
[1763349098975,3.11,139.92,139.84,1.76773599]
[1763349099486,3.11,139.92,139.86,1.76773599]
[1763349099688,3.11,139.89,139.88,0.05069659]
[1763349105676,0.04829142,139.9,139.88,0.05069659]
[1763349105871,3.15829142,139.9,139.88,0.05069659]
[1763349106069,3.15829142,139.9,139.88,2.88069659]
[1763349106070,0.04829142,139.9,139.88,2.88069659]
[1763349107282,0.04829142,139.9,139.88,0.05069659]
[1763349108182,0.04829142,139.9,139.88,2.88069659]
[1763349109686,3.15829142,139.9,139.88,0.05069659]
[1763349110383,78.23829142,139.9,139.88,0.05069659]
[1763349110780,3.11,139.89,139.88,0.05069659]
[1763349121094,0.04829142,139.9,139.88,11.79693622]
[1763349121299,20.87,139.94,139.9,2.8]
[1763349121596,3.19,139.93,139.9,2.8]
[1763349122198,3.19,139.93,139.9,0.04626107]
[1763349124302,78.21,139.94,139.91,8.94435106]
[1763349124494,78.21,139.94,139.9,2.84626107]
[1763349124695,78.21,139.94,139.91,8.94435506]
[1763349124897,3.19,139.93,139.9,2.84626107]
[1763349125098,3.19,139.93,139.91,8.94496017]
[1763349125298,3.19,139.93,139.9,2.84626107]
[1763349125499,78.21,139.94,139.91,8.94496017]
[1763349125697,78.21,139.94,139.9,2.84626107]
[1763349125897,78.21,139.94,139.91,8.94435506]
[1763349126099,3.19,139.94,139.9,2.84626107]
[1763349126295,3.19,139.94,139.91,8.94435497]
[1763349126503,3.19,139.94,139.92,8.94435497]
[1763349126801,3.19,139.94,139.9,2.84626107]
[1763349127104,3.19,139.94,139.91,11.74435497]
[1763349127402,3.19,139.94,139.91,2.8]
[1763349127702,3.19,139.94,139.9,2.84626107]
[1763349127902,3.19,139.94,139.91,8.94475837]
[1763349128104,3.19,139.94,139.9,2.84626107]
[1763349128303,3.19,139.94,139.91,8.94475837]
[1763349128600,3.19,139.94,139.92,8.94475837]
[1763349128805,3.19,139.94,139.9,2.84626107]
[1763349129107,3.19,139.97,139.92,2.8]
[1763349129301,74.98,139.95,139.93,8.99486958]
[1763349129502,74.98,139.95,139.94,8.94475837]
[1763349129713,78.17,139.95,139.94,8.94475837]
[1763349130206,3.19,139.94,139.93,0.05011121]
[1763349130403,3.19,139.94,139.93,8.99405882]
[1763349130604,3.19,139.94,139.93,8.99466521]
[1763349131906,4.95773599,139.94,139.93,8.99466521]
[1763349132611,3.19,139.94,139.93,8.99466521]
[1763349132807,4.95773599,139.96,139.93,11.79466521]
[1763349133002,10.50985678,139.98,139.94,8.944554]
[1763349133200,3.19,139.96,139.95,8.944554]
[1763349135404,78.15,139.96,139.95,8.944554]
[1763349138297,79.91773599,139.96,139.93,0.05011121]
[1763349138500,3.12,139.95,139.93,0.05011121]
[1763349139210,74.96,139.94,139.93,0.05011121]
[1763349139605,78.08,139.94,139.93,0.05011121]
[1763349139999,3.12,139.93,139.87,10.74]
[1763349140199,3.12,139.93,139.88,2.87]
[1763349140408,74.98,139.94,139.9,2.87]
[1763349140606,3.12,139.96,139.9,2.87]
[1763349140812,74.98,139.95,139.9,2.87]
[1763349141111,3.16600845,139.94,139.91,2.92364394]
[1763349144210,3.39,139.92,139.91,0.05364394]
[1763349144405,78.35,139.92,139.91,0.05364394]
[1763349144719,78.45,139.92,139.91,0.05364394]
[1763349146003,3.39,139.92,139.91,0.05364394]
[1763349146315,61.53,139.92,139.91,0.05364394]
[1763349147405,78.43,139.92,139.91,0.05364394]
[1763349149015,75.04,139.92,139.91,2.92364394]
[1763349149314,10.50985678,139.98,139.92,2.87]
[1763349149315,13.89985678,139.98,139.92,2.87]
[1763349149511,10.50985678,139.98,139.93,2.87]
[1763349149911,13.89985678,139.98,139.93,2.87]
[1763349150310,13.89985678,139.98,139.94,2.91549902]
[1763349150515,13.89985678,139.98,139.95,8.94207966]
[1763349150709,13.89985678,139.98,139.96,8.94207966]
[1763349150912,13.89985678,139.98,139.97,8.94207966]
[1763349151820,10.50985678,139.98,139.97,8.94207966]
[1763349153122,10.50985678,139.98,139.97,11.81207966]
[1763349155222,10.50985678,139.98,139.97,8.94207966]
[1763349155918,13.89985678,139.98,139.97,8.94207966]
[1763349157011,10.50985678,139.98,139.97,8.94207966]
[1763349157212,13.89985678,139.98,139.97,8.94207966]
[1763349157612,89.01985678,139.98,139.97,8.94207966]
[1763349157824,13.89985678,139.98,139.97,8.94207966]
[1763349158017,89.01985678,139.98,139.97,8.94207966]
[1763349159323,88.99985678,139.98,139.97,8.94207966]
[1763349160517,13.89985678,139.98,139.97,8.94207966]
[1763349160724,89.01985678,139.98,139.97,8.94207966]
[1763349163125,88.99985678,139.98,139.97,8.94207966]
[1763349163624,85.60985678,139.98,139.97,8.94207966]
[1763349163926,88.99985678,139.98,139.97,8.94207966]
[1763349164228,85.60985678,139.98,139.97,8.94207966]
[1763349164732,85.60985678,139.98,139.97,11.81207966]
[1763349167226,85.60985678,139.98,139.97,8.94207966]
[1763349169735,88.99985678,139.98,139.97,8.94207966]
[1763349171034,13.89985678,139.98,139.97,8.94207966]
[1763349171234,88.93985678,139.98,139.97,8.94207966]
[1763349176237,88.93985678,139.98,139.97,5.53207966]
[1763349176537,88.93985678,139.98,139.97,1.96255656]
[1763349176925,3.39,139.97,139.94,0.04549902]
[1763349178329,3.39,139.97,139.94,3.38549902]
[1763349179829,10.50985678,139.98,139.94,3.38549902]
[1763349179830,75.02,139.96,139.94,3.38549902]
[1763349180434,78.41,139.96,139.94,0.04549902]
[1763349180840,10.50985678,139.98,139.94,3.38549902]
[1763349181135,3.39,140.05,139.96,2.75410615]
[1763349181331,3.39,140.05,139.99,0.05124088]
[1763349182127,3.39,140.1,139.99,0.05124088]
[1763349182332,3.39,140.1,140.03,0.04967078]
[1763349183835,3.39,140.08,140.03,0.04967078]
[1763349184335,3.39,140.07,139.95,2.75410615]
[1763349185139,3.39,140.07,139.94,2.75410615]
[1763349185330,3.43794878,140.02,139.99,0.04991802]
[1763349185526,3.44377354,140.02,139.99,0.049988]
[1763349190143,0.05377354,140.02,139.99,0.049988]
[1763349190547,3.44377354,140.02,139.99,0.049988]
[1763349191241,0.05377354,140.02,139.99,0.049988]
[1763349191442,3.44377354,140.02,139.99,0.049988]
[1763349192147,0.05377354,140.02,139.99,0.049988]
[1763349192338,3.44377354,140.02,139.99,0.049988]
[1763349196449,0.05377354,140.02,139.99,0.049988]
[1763349196757,3.16377354,140.02,139.99,0.049988]
[1763349199251,0.05377354,140.02,139.99,0.049988]
[1763349199651,3.16377354,140.02,139.99,0.049988]
[1763349200458,0.05377354,140.02,139.99,0.049988]
[1763349201256,3.11,140.08,139.99,0.049988]
[1763349201459,3.11,140.08,139.98,2.75410615]
[1763349202463,3.11,140.08,140.02,0.04816184]
[1763349202863,3.2,140.11,140.02,2.80226799]
[1763349203060,3.2,140.11,140.05,0.04974387]
[1763349203363,13.70985678,140.14,140.05,2.80385002]
[1763349203552,13.70985678,140.14,140.08,0.05451636]
[1763349203553,3.2,140.13,140.08,0.05451636]
[1763349205160,10.50985678,140.14,140.08,0.05451636]
[1763349205354,3.2,140.13,140.08,0.05451636]
[1763349209654,10.50985678,140.14,140.08,0.05451636]
[1763349209960,10.50985678,140.14,140.11,2.75410615]
[1763349210163,10.50985678,140.14,140.11,0.05232158]
[1763349211062,9.61324078,140.14,140.11,0.05232158]
[1763349211255,2.75410615,140.27,140.12,1.42]
[1763349211564,3.2,140.26,140.18,0.05208957]
[1763349211752,3.2,140.26,140.13,2.75410615]
[1763349211753,3.2,140.26,140.21,0.05226393]
[1763349211959,3.2,140.26,140.22,0.04750148]
[1763349212158,3.2,140.26,140.23,0.04748034]
[1763349212454,41.74959662,140.3,140.13,2.75410615]
[1763349212455,3.2,140.24,140.13,2.75410615]
[1763349212659,3.2,140.21,140.1,2.75410615]
[1763349212859,3.2,140.2,140.06,21.64893438]
[1763349213067,3.2,140.2,140.1,6.4288]
[1763349213261,3.2,140.23,140.07,13.86893438]
[1763349213462,0.04655942,140.17,140.14,0.05032541]
[1763349213656,0.04655942,140.17,140.14,0.05132073]
[1763349214069,0.04655942,140.17,140.14,1.47132073]
[1763349214371,0.04655942,140.17,140.14,0.05132073]
[1763349215065,3.24655942,140.17,140.14,0.05132073]
[1763349218876,3.2,140.15,140.06,7.78]
[1763349219966,0.05249197,140.12,140.09,0.04509782]
[1763349220372,3.25249197,140.12,140.09,0.04509782]
[1763349220575,0.05249197,140.12,140.09,0.04509782]
[1763349221071,0.05249197,140.12,140.09,1.46509782]
[1763349223065,3.2,140.2,140.11,4.18361339]
[1763349223667,3.2,140.2,140.12,6.4276]
[1763349224172,3.2,140.2,140.11,4.18361339]
[1763349224173,0.04538818,140.17,140.15,0.05350029]
[1763349227978,3.24538818,140.17,140.15,0.05350029]
[1763349230477,3.24538818,140.17,140.06,7.78]
[1763349230681,3.2,140.15,140.06,7.78]
[1763349231479,0.04653029,140.12,140.09,0.04652944]
[1763349231683,3.2,140.11,140.09,0.04652944]
[1763349232175,8.80361339,140.11,140.06,7.78]
[1763349232376,0.04653029,140.12,139.89,12.8767]
[1763349232377,3.2,140.07,139.94,10.76553267]
[1763349232579,3.2,140.07,139.97,4.18361339]
[1763349232781,3.2,140.07,139.96,10.61861339]
[1763349233279,3.25112527,140.03,140.0,0.05234047]
[1763349233484,3.25292836,140.03,140.0,0.04894427]
[1763349238081,0.05292836,140.03,140.0,0.04894427]
[1763349241386,3.2,140.07,140.01,4.18361339]
[1763349242491,0.05046933,140.05,140.01,4.18361339]
[1763349243991,0.05046933,140.05,140.04,4.18361339]
[1763349244190,3.2,140.13,140.02,8.00191928]
[1763349244377,3.2,140.13,140.04,4.18361339]
[1763349245180,0.04202022,140.1,140.07,0.04919548]
[1763349245398,3.24202022,140.1,140.07,0.04919548]
[1763349250206,3.2,140.16,140.09,4.18361339]
[1763349250593,3.2,140.16,140.09,10.61271339]
[1763349251197,3.2,140.16,140.11,0.04957334]
[1763349254707,3.2,140.16,140.11,4.23318673]
[1763349255105,3.2,140.23,140.11,4.23318673]
[1763349255302,3.2,140.23,140.16,0.05246204]
[1763349258210,3.2,140.23,140.09,4.18361339]
[1763349258705,3.06,140.2,140.1,8.11]
[1763349259099,3.06,140.2,140.14,0.04916478]
[1763349259306,3.06,140.15,140.14,0.04916478]
[1763349259610,3.06,140.15,140.13,0.05114995]
[1763349265707,0.04891041,140.16,140.13,4.23476334]
[1763349266111,3.21,140.22,140.13,4.23476334]
[1763349266308,3.21,140.22,140.13,4.18361339]
[1763349266707,3.21,140.22,140.15,6.4263]
[1763349266914,3.21,140.22,140.16,4.18361339]
[1763349267118,3.21,140.22,140.18,0.05079053]
[1763349273318,646.5,140.35,140.18,0.05079053]
[1763349273319,3.21,140.28,140.18,4.23440392]
[1763349273523,3.21,140.28,140.22,0.04565976]
[1763349274921,3.21,140.28,140.16,4.18361339]
[1763349275322,3.21,140.28,140.14,4.18361339]
[1763349276023,3.21,140.21,140.2,0.04950373]
[1763349276222,3.21,140.21,140.14,4.18361339]